Workbook

Sheet 面试总成绩
A1: 昌江区2024年中小学和特岗教师招聘面试成绩及总成绩
A2: 序号 | B2: 岗位名称 | C2: 单位(部门)名称 | D2: 姓名 | E2: 笔试成绩 | F2: 笔试折算后成绩 | G2: 面试成绩 | H2: 面试折算后成绩 | I2: 总成绩
A3: 1 | B3: 高中 语文 | C3: 景德镇市 昌江一中 | D3: 汪英 | E3: 182 | F3: =E3*(50/250) -> 36.40 | G3: 82.76 | H3: =G3*(50/100) -> 41.38 | I3: =F3+H3 -> 77.78
A4: 2 | D4: 黎春燕 | E4: 180.5 | F4: 36.10 | G4: 78.58 | H4: 39.29 | I4: 75.39
A5: 3 | D5: 陈芷怡 | E5: 172.5 | F5: 34.50 | G5: 80.74 | H5: 40.37 | I5: 74.87
A6: 4 | D6: 陈云 | E6: 169.5 | F6: 33.90 | G6: 82.44 | H6: 41.22 | I6: 75.12
A7: 5 | D7: 江彩娟 | E7: 162 | F7: 32.40 | G7: 82.74 | H7: 41.37 | I7: 73.77
A8: 6 | C8: 景德镇市昌江区 高级职业学校 | D8: 黄慧娟 | E8: 157.5 | F8: 31.50 | G8: 84.26 | H8: 42.13 | I8: 73.63
A9: 7 | D9: 王美玲 | E9: 140.5 | F9: 28.10 | G9: 84.32 | H9: 42.16 | I9: 70.26
A10: 8 | D10: 陈媛媛 | E10: 130 | F10: 26.00 | G10: 80.86 | H10: 40.43 | I10: 66.43
A11: 9 | B11: 初中 语文 | C11: 景德镇市 昌江一中分校 | D11: 刘依凌 | E11: 185 | F11: 37.00 | G11: 83.42 | H11: 41.71 | I11: 78.71
A12: 10 | D12: 汪钰婷 | E12: 169 | F12: 33.80 | G12: 75.94 | H12: 37.97 | I12: 71.77
A13: 11 | D13: 丁子义 | E13: 159 | F13: 31.80 | G13: 78.38 | H13: 39.19 | I13: 70.99
A14: 12 | C14: 特岗 | D14: 李日晨 | E14: 200 | F14: 40.00 | G14: 83.24 | H14: 41.62 | I14: 81.62
A15: 13 | D15: 尹珠兰 | E15: 193 | F15: 38.60 | G15: 79.28 | H15: 39.64 | I15: 78.24
A16: 14 | D16: 巢玲玲 | E16: 192 | F16: 38.40 | G16: 79.30 | H16: 39.65 | I16: 78.05
A17: 15 | D17: 熊慧 | E17: 189 | F17: 37.80 | G17: 78.88 | H17: 39.44 | I17: 77.24
A18: 16 | D18: 姜采奕 | E18: 187 | F18: 37.40 | G18: 80.36 | H18: 40.18 | I18: 77.58
A19: 17 | D19: 万玲 | E19: 182.5 | F19: 36.50 | G19: 80.98 | H19: 40.49 | I19: 76.99
A20: 18 | D20: 李尚卿 | E20: 182 | F20: 36.40 | G20: 81.14 | H20: 40.57 | I20: 76.97
A21: 19 | D21: 王晓亭 | E21: 179 | F21: 35.80 | G21: 80.86 | H21: 40.43 | I21: 76.23
A22: 20 | D22: 郑子越 | E22: 169.5 | F22: 33.90 | G22: 80.16 | H22: 40.08 | I22: 73.98
A23: 21 | B23: 高中 数学 | C23: 景德镇市 昌江一中 | D23: 张毓珊 | E23: 198.5 | F23: 39.70 | G23: 82.56 | H23: 41.28 | I23: 80.98
A24: 22 | D24: 汪文姗 | E24: 196 | F24: 39.20 | G24: 76.92 | H24: 38.46 | I24: 77.66
A25: 23 | D25: 刘晓静 | E25: 185.5 | F25: 37.10 | G25: 82.64 | H25: 41.32 | I25: 78.42
A26: 24 | C26: 景德镇市 昌江二中 | D26: 方有芳 | E26: 158.5 | F26: 31.70 | G26: 80.88 | H26: 40.44 | I26: 72.14
A27: 25 | D27: 洪嘉慧 | E27: 144 | F27: 28.80 | G27: 81.86 | H27: 40.93 | I27: 69.73
A28: 26 | C28: 景德镇市昌江区 高级职业学校 | D28: 范双烨 | E28: 198 | F28: 39.60 | G28: 82.96 | H28: 41.48 | I28: 81.08
A29: 27 | D29: 周衡 | E29: 185 | F29: 37.00 | G29: 80.20 | H29: 40.10 | I29: 77.10
A30: 28 | B30: 初中 数学 | C30: 景德镇市 航空学校 | D30: 秦文恺 | E30: 206.5 | F30: 41.30 | G30: 79.64 | H30: 39.82 | I30: 81.12
A31: 29 | D31: 金昕怡 | E31: 182.5 | F31: 36.50 | G31: 79.06 | H31: 39.53 | I31: 76.03
A32: 30 | D32: 汪涵毅 | E32: 171.5 | F32: 34.30 | G32: 75.80 | H32: 37.90 | I32: 72.20
A33: 31 | C33: 特岗 | D33: 黄亚菲 | E33: 201.5 | F33: 40.30 | G33: 82.04 | H33: 41.02 | I33: 81.32
A34: 32 | D34: 孔莉丹 | E34: 176 | F34: 35.20 | G34: 83.34 | H34: 41.67 | I34: 76.87
A35: 33 | D35: 余春红 | E35: 174.5 | F35: 34.90 | G35: 79.22 | H35: 39.61 | I35: 74.51
A36: 34 | D36: 周思捷 | E36: 164.5 | F36: 32.90 | G36: 80.58 | H36: 40.29 | I36: 73.19
A37: 35 | D37: 荣深圳 | E37: 159 | F37: 31.80 | G37: 75.88 | H37: 37.94 | I37: 69.74
A38: 36 | B38: 高中 英语 | C38: 景德镇市昌江区 高级职业学校 | D38: 阮钿轶 | E38: 204.5 | F38: 40.90 | G38: 82.80 | H38: 41.40 | I38: 82.30
A39: 37 | D39: 叶晴雯 | E39: 202 | F39: 40.40 | G39: 79.80 | H39: 39.90 | I39: 80.30
A40: 38 | D40: 沈檬 | E40: 194.5 | F40: 38.90 | G40: 80.68 | H40: 40.34 | I40: 79.24
A41: 39 | B41: 初中 英语 | C41: 昌江区初中学校 （昌江一中分校、航空学校） | D41: 刘丹 | E41: 202 | F41: 40.40 | G41: 84.46 | H41: 42.23 | I41: 82.63
A42: 40 | D42: 万丽雯 | E42: 199 | F42: 39.80 | G42: 78.16 | H42: 39.08 | I42: 78.88
A43: 41 | D43: 任志雯 | E43: 199 | F43: 39.80 | G43: 79.80 | H43: 39.90 | I43: 79.70
A44: 42 | D44: 章依淳 | E44: 196 | F44: 39.20 | G44: 81.72 | H44: 40.86 | I44: 80.06
A45: 43 | D45: 张明玥 | E45: 193 | F45: 38.60 | G45: 81.50 | H45: 40.75 | I45: 79.35
A46: 44 | D46: 汪敏 | E46: 185 | F46: 37.00 | G46: 80.60 | H46: 40.30 | I46: 77.30
A47: 45 | D47: 洪伊静 | E47: 185 | F47: 37.00 | G47: 76.56 | H47: 38.28 | I47: 75.28
A48: 46 | C48: 特岗 | D48: 周成妹 | E48: 199.5 | F48: 39.90 | G48: 77.70 | H48: 38.85 | I48: 78.75
A49: 47 | D49: 洪亚琪 | E49: 183 | F49: 36.60 | G49: 81.00 | H49: 40.50 | I49: 77.10
A50: 48 | D50: 何欢欢 | E50: 182.75 | F50: 36.55 | G50: 81.80 | H50: 40.90 | I50: 77.45
A51: 49 | B51: 高中 思想政治 | C51: 景德镇市昌江区 高级职业学校 | D51: 方嘉怡 | E51: 162.5 | F51: 32.50 | G51: 82.38 | H51: 41.19 | I51: 73.69
A52: 50 | D52: 何中文 | E52: 161 | F52: 32.20 | G52: 80.18 | H52: 40.09 | I52: 72.29
A53: 51 | D53: 范家依 | E53: 129 | F53: 25.80 | G53: 82.52 | H53: 41.26 | I53: 67.06
A54: 52 | B54: 初中道德与法治 | C54: 景德镇市昌江区 白鹭学校 | D54: 张婪 | E54: 224 | F54: 44.80 | G54: 83.54 | H54: 41.77 | I54: 86.57
A55: 53 | D55: 刘子瑶 | E55: 216.5 | F55: 43.30 | G55: 83.64 | H55: 41.82 | I55: 85.12
A56: 54 | D56: 张享祺 | E56: 216.5 | F56: 43.30 | G56: 82.66 | H56: 41.33 | I56: 84.63
A57: 55 | D57: 沈晴川 | E57: 214 | F57: 42.80 | G57: 81.24 | H57: 40.62 | I57: 83.42
A58: 56 | D58: 封昕怡 | E58: 214 | F58: 42.80 | G58: 83.90 | H58: 41.95 | I58: 84.75
A59: 57 | D59: 李琪琪 | E59: 211 | F59: 42.20 | G59: 83.58 | H59: 41.79 | I59: 83.99
A60: 58 | D60: 聂梦婷 | E60: 211 | F60: 42.20 | G60: 83.26 | H60: 41.63 | I60: 83.83
A61: 59 | D61: 卢小梅 | E61: 209.5 | F61: 41.90 | G61: 82.06 | H61: 41.03 | I61: 82.93
A62: 60 | D62: 刘子琪 | E62: 208.5 | F62: 41.70 | G62: 83.70 | H62: 41.85 | I62: 83.55
A63: 61 | D63: 陈波兰 | E63: 208.5 | F63: 41.70 | G63: 81.98 | H63: 40.99 | I63: 82.69
A64: 62 | C64: 昌江区初中学校 （昌江一中分校、航空学校） | D64: 陈祉骞理 | E64: 191.5 | F64: 38.30 | G64: 82.40 | H64: 41.20 | I64: 79.50
A65: 63 | D65: 谢庆雯 | E65: 202 | F65: 40.40 | G65: 82.48 | H65: 41.24 | I65: 81.64
A66: 64 | D66: 温丽萍 | E66: 200.5 | F66: 40.10 | G66: 79.68 | H66: 39.84 | I66: 79.94
A67: 65 | D67: 刘家榆 | E67: 170.5 | F67: =E67*(50/250) -> 34.10 | G67: 79.24 | H67: =G67*(50/100) -> 39.62 | I67: =F67+H67 -> 73.72
A68: 66 | B68: 小学道德与法治 | C68: 特岗 | D68: 王程梦 | E68: 213.5 | F68: 42.70 | G68: 82.64 | H68: 41.32 | I68: 84.02
A69: 67 | D69: 张泽巧 | E69: 206 | F69: 41.20 | G69: 79.94 | H69: 39.97 | I69: 81.17
A70: 68 | D70: 包涵 | E70: 205.5 | F70: 41.10 | G70: 84.26 | H70: 42.13 | I70: 83.23
A71: 69 | D71: 吴仔萱 | E71: 205 | F71: 41.00 | G71: 85.34 | H71: 42.67 | I71: 83.67
A72: 70 | D72: 熊绮雯 | E72: 198 | F72: 39.60 | G72: 79.34 | H72: 39.67 | I72: 79.27
A73: 71 | B73: 高中 地理 | C73: 景德镇市 昌江二中 | D73: 武跃荣 | E73: 168.5 | F73: 33.70 | G73: 0.00 | H73: 0.00 | I73: 33.70
A74: 72 | D74: 肖雯 | E74: 166 | F74: 33.20 | G74: 77.54 | H74: 38.77 | I74: 71.97
A75: 73 | D75: 谭熙瑶 | E75: 166 | F75: 33.20 | G75: 83.46 | H75: 41.73 | I75: 74.93
A76: 74 | B76: 高中 历史 | C76: 景德镇市昌江区 高级职业学校 | D76: 袁思瑜 | E76: 170.5 | F76: 34.10 | G76: 83.24 | H76: 41.62 | I76: 75.72
A77: 75 | D77: 范长福 | E77: 160 | F77: 32.00 | G77: 73.34 | H77: 36.67 | I77: 68.67
A78: 76 | D78: 邹宇轩 | E78: 153 | F78: 30.60 | G78: 76.12 | H78: 38.06 | I78: 68.66
A79: 77 | B79: 高中 物理 | C79: 景德镇市 昌江一中 | D79: 李芝尧 | E79: 152.5 | F79: 30.50 | G79: 74.48 | H79: 37.24 | I79: 67.74
A80: 78 | D80: 杨斌 | E80: 136.5 | F80: 27.30 | G80: 78.00 | H80: 39.00 | I80: 66.30
A81: 79 | D81: 王承喜 | E81: 130.5 | F81: 26.10 | G81: 80.10 | H81: 40.05 | I81: 66.15
A82: 80 | D82: 马彬玮 | E82: 123.5 | F82: 24.70 | G82: 78.64 | H82: 39.32 | I82: 64.02
A83: 81 | D83: 王焱 | E83: 113 | F83: 22.60 | G83: 73.70 | H83: 36.85 | I83: 59.45
A84: 82 | C84: 景德镇市昌江区 高级职业学校 | D84: 汪文俊 | E84: 109 | F84: 21.80 | G84: 76.34 | H84: 38.17 | I84: 59.97
A85: 83 | D85: 李柯宜 | E85: 102.5 | F85: 20.50 | G85: 0.00 | H85: 0.00 | I85: 20.50
A86: 84 | D86: 刘子兴 | E86: 99.5 | F86: 19.90 | G86: 0.00 | H86: 0.00 | I86: 19.90
A87: 85 | B87: 初中 物理 | C87: 景德镇市昌江区 白鹭学校 | D87: 沈科奇 | E87: 177.5 | F87: 35.50 | G87: 75.66 | H87: 37.83 | I87: 73.33
A88: 86 | D88: 李紫珏 | E88: 145.5 | F88: 29.10 | G88: 75.70 | H88: 37.85 | I88: 66.95
A89: 87 | D89: 黄叶妮 | E89: 139 | F89: 27.80 | G89: 73.10 | H89: 36.55 | I89: 64.35
A90: 88 | B90: 初中 物理 | C90: 特岗 | D90: 叶兆辉 | E90: 180 | F90: 36.00 | G90: 78.26 | H90: 39.13 | I90: 75.13
A91: 89 | D91: 郑泓宇 | E91: 161 | F91: 32.20 | G91: 80.04 | H91: 40.02 | I91: 72.22
A92: 90 | D92: 李吕 | E92: 149.5 | F92: 29.90 | G92: 0.00 | H92: 0.00 | I92: 29.90
A93: 91 | D93: 徐诺纳 | E93: 138 | F93: 27.60 | G93: 0.00 | H93: 0.00 | I93: 27.60
A94: 92 | D94: 潘昊 | E94: 137 | F94: 27.40 | G94: 72.24 | H94: 36.12 | I94: 63.52
A95: 93 | D95: 熊秋根 | E95: 134.5 | F95: 26.90 | G95: 75.10 | H95: 37.55 | I95: 64.45
A96: 94 | B96: 高中 化学 | C96: 景德镇市 昌江一中 | D96: 江月辉 | E96: 206 | F96: 41.20 | G96: 79.02 | H96: 39.51 | I96: 80.71
A97: 95 | D97: 徐巧贞 | E97: 186.5 | F97: 37.30 | G97: 79.06 | H97: 39.53 | I97: 76.83
A98: 96 | D98: 穆馨怡 | E98: 149 | F98: 29.80 | G98: 78.36 | H98: 39.18 | I98: 68.98
A99: 97 | B99: 初中 化学 | C99: 景德镇市昌江区 白鹭学校 | D99: 周雨琦 | E99: 176.5 | F99: 35.30 | G99: 81.70 | H99: 40.85 | I99: 76.15
A100: 98 | D100: 罗文钟 | E100: 145 | F100: 29.00 | G100: 72.62 | H100: 36.31 | I100: 65.31
A101: 99 | C101: 景德镇市 航空学校 | D101: 吴欣悦 | E101: 159 | F101: 31.80 | G101: 78.54 | H101: 39.27 | I101: 71.07
A102: 100 | D102: 邹灵铃 | E102: 156 | F102: 31.20 | G102: 80.60 | H102: 40.30 | I102: 71.50
A103: 101 | D103: 吴梓萌 | E103: 156 | F103: 31.20 | G103: 80.94 | H103: 40.47 | I103: 71.67
A104: 102 | B104: 高中 生物 | C104: 景德镇市 昌江一中 | D104: 邓佳敏 | E104: 176 | F104: 35.20 | G104: 77.66 | H104: 38.83 | I104: 74.03
A105: 103 | D105: 陈晓恬 | E105: 156.5 | F105: 31.30 | G105: 78.48 | H105: 39.24 | I105: 70.54
A106: 104 | D106: 黄柳柳 | E106: 156 | F106: 31.20 | G106: 77.08 | H106: 38.54 | I106: 69.74
A107: 105 | C107: 景德镇市 昌江二中 | D107: 曾娟 | E107: 173.5 | F107: 34.70 | G107: 83.60 | H107: 41.80 | I107: 76.50
A108: 106 | D108: 吴冬春 | E108: 169.5 | F108: 33.90 | G108: 72.10 | H108: 36.05 | I108: 69.95
A109: 107 | D109: 张永桃 | E109: 167 | F109: 33.40 | G109: 80.54 | H109: 40.27 | I109: 73.67
A110: 108 | B110: 初中 生物 | C110: 景德镇市昌江区 白鹭学校 | D110: 付梓华 | E110: 222.5 | F110: 44.50 | G110: 81.30 | H110: 40.65 | I110: 85.15
A111: 109 | D111: 陶金宇 | E111: 181 | F111: 36.20 | G111: 0.00 | H111: 0.00 | I111: 36.20
A112: 110 | D112: 黄赢 | E112: 164.5 | F112: 32.90 | G112: 77.36 | H112: 38.68 | I112: 71.58
A113: 111 | B113: 高中 音乐 | C113: 景德镇市 昌江二中 | D113: 张巧玲 | E113: 166.5 | F113: =E113*(40/250) -> 26.64 | G113: 83.66 | H113: =G113*(60/100) -> 50.20 | I113: 76.84
A114: 112 | D114: 毛艺芸 | E114: 165.5 | F114: 26.48 | G114: 81.84 | H114: 49.10 | I114: 75.58
A115: 113 | D115: 陈世饶 | E115: 154 | F115: 24.64 | G115: 79.84 | H115: 47.90 | I115: 72.54
A116: 114 | B116: 初中 音乐 | C116: 景德镇市昌江区 白鹭学校 | D116: 陈斯越 | E116: 167 | F116: 26.72 | G116: 81.78 | H116: 49.07 | I116: 75.79
A117: 115 | D117: 王偌怡 | E117: 157.5 | F117: 25.20 | G117: 81.58 | H117: 48.95 | I117: 74.15
A118: 116 | D118: 袁可欣 | E118: 154 | F118: 24.64 | G118: 85.20 | H118: 51.12 | I118: 75.76
A119: 117 | B119: 高中体育与健康 | C119: 景德镇市 昌江一中 | D119: 刘志良 | E119: 204 | F119: 32.64 | G119: 82.08 | H119: 49.25 | I119: 81.89
A120: 118 | D120: 彭益斌 | E120: 169.5 | F120: 27.12 | G120: 84.64 | H120: 50.78 | I120: 77.90
A121: 119 | D121: 魏淑倩 | E121: 126.5 | F121: 20.24 | G121: 0.00 | H121: 0.00 | I121: 20.24
A122: 120 | C122: 景德镇市昌江区 高级职业学校 | D122: 雷斌辉 | E122: 156.5 | F122: 25.04 | G122: 79.30 | H122: 47.58 | I122: 72.62
A123: 121 | D123: 曾敏 | E123: 138.5 | F123: 22.16 | G123: 81.06 | H123: 48.64 | I123: 70.80
A124: 122 | D124: 汤禄战 | E124: 128.5 | F124: 20.56 | G124: 80.20 | H124: 48.12 | I124: 68.68
A125: 123 | B125: 初中体育与健康 | C125: 景德镇市 昌江一中分校 | D125: 刘佳丽 | E125: 196 | F125: 31.36 | G125: 84.96 | H125: 50.98 | I125: 82.34
A126: 124 | D126: 方静雅 | E126: 168.5 | F126: 26.96 | G126: 83.74 | H126: 50.24 | I126: 77.20
A127: 125 | D127: 李辉炼 | E127: 142 | F127: 22.72 | G127: 81.20 | H127: 48.72 | I127: 71.44
A128: 126 | B128: 初中体育与健康 | C128: 特岗 | D128: 陈双双 | E128: 146 | F128: 23.36 | G128: 85.92 | H128: 51.55 | I128: 74.91
A129: 127 | D129: 甘春宜 | E129: 127.5 | F129: 20.40 | G129: 76.58 | H129: 45.95 | I129: 66.35
A130: 128 | D130: 王俊琪 | E130: 118.5 | F130: 18.96 | G130: 81.96 | H130: 49.18 | I130: 68.14
A131: 129 | B131: 高中 美术 | C131: 景德镇市昌江区 高级职业学校 | D131: 张佳泺 | E131: 183 | F131: 29.28 | G131: 80.88 | H131: 48.53 | I131: =F131+H131 -> 77.81
A132: 130 | D132: 段霄燕 | E132: 179.5 | F132: 28.72 | G132: 80.46 | H132: 48.28 | I132: 77.00
A133: 131 | D133: 彭嘉昕 | E133: 172 | F133: 27.52 | G133: 80.38 | H133: 48.23 | I133: 75.75
A134: 132 | B134: 小学 美术 | C134: 特岗 | D134: 黄茜雨 | E134: 197.5 | F134: 31.60 | G134: 83.30 | H134: 49.98 | I134: 81.58
A135: 133 | D135: 冯齐婕 | E135: 196.5 | F135: 31.44 | G135: 80.42 | H135: 48.25 | I135: 79.69
A136: 134 | D136: 黄欢欢 | E136: 191.5 | F136: 30.64 | G136: 81.36 | H136: 48.82 | I136: 79.46
A137: 135 | D137: 刘艳 | E137: 190 | F137: 30.40 | G137: 81.06 | H137: 48.64 | I137: 79.04
A138: 136 | D138: 包艳娇 | E138: 188.5 | F138: 30.16 | G138: 82.58 | H138: 49.55 | I138: 79.71
A139: 137 | D139: 刘明 | E139: 188.5 | F139: 30.16 | G139: 81.58 | H139: 48.95 | I139: 79.11
A140: 138 | B140: 高中信息技术和通用技术 | C140: 景德镇市昌江区 高级职业学校 | D140: 毕碧影 | E140: 170 | F140: =E140*(50/250) -> 34.00 | G140: 82.18 | H140: =G140*(50/100) -> 41.09 | I140: 75.09
A141: 139 | D141: 鲁志煌 | E141: 169 | F141: 33.80 | G141: 78.38 | H141: 39.19 | I141: 72.99
A142: 140 | D142: 董健祥 | E142: 153.5 | F142: 30.70 | G142: 0.00 | H142: 0.00 | I142: 30.70
A143: 141 | B143: 初中心理健康教育 | C143: 特岗 | D143: 石珺玥 | E143: 207 | F143: 41.40 | G143: 83.04 | H143: 41.52 | I143: 82.92
